bitfinex-derivatives/quotes_ETHF0:USTF0_20250910
["timestamp","ask_amount","ask_price","bid_price","bid_amount"]
[1757522826086,0.8262,4375.5,4375.4,0.7095]
[1757522826289,0.7091,4375.5,4375.4,0.7095]
[1757522831098,0.5008,4375.5,4375.4,0.7095]
[1757522831398,0.2068,4375.5,4375.4,0.7095]
[1757522831598,0.1171,4376.0,4375.4,0.4153]
[1757522831898,0.7091,4375.9,4375.8,0.7095]
[1757522833096,0.7091,4375.9,4375.8,0.4153]
[1757522833597,0.7091,4375.9,4375.8,0.7095]
[1757522835401,0.2068,4375.9,4375.8,0.7095]
[1757522837400,0.527,4376.1,4375.9,0.2942]
[1757522837604,0.5008,4375.9,4375.8,0.4153]
[1757522837805,0.5008,4375.9,4375.8,0.7095]
[1757522838190,0.7091,4375.9,4375.8,0.7095]
[1757522838602,0.5008,4375.9,4375.8,0.7095]
[1757522838804,0.7091,4375.9,4375.8,0.7095]
[1757522839305,0.2068,4375.9,4375.8,0.7095]
[1757522839506,0.7091,4375.9,4375.8,0.7095]
[1757522843600,0.294,4376.3,4376.0,0.1222]
[1757522843807,0.294,4376.5,4376.2,0.7095]
[1757522844105,0.5023,4376.4,4376.3,0.7095]
[1757522844306,0.7091,4376.4,4376.3,0.7095]
[1757522850405,0.2948,4376.7,4376.3,0.7095]
[1757522850608,0.6432,4376.8,4376.7,0.2044]
[1757522850911,0.6432,4376.8,4376.7,0.5145]
[1757522851206,0.938,4376.8,4376.7,0.725]
[1757522854113,0.938,4376.8,4376.7,0.2044]
[1757522854616,0.938,4376.8,4376.7,0.5145]
[1757522856510,0.938,4376.8,4376.7,0.725]
[1757522857414,0.705,4377.4,4377.3,0.725]
[1757522861913,0.4102,4376.9,4376.5,0.3101]
[1757522862114,0.4102,4376.4,4376.3,3.7223]
[1757522862415,0.705,4376.4,4376.3,3.9328]
[1757522863121,0.2948,4376.7,4376.3,4.344]
[1757522863415,0.4997,4376.5,4376.4,0.725]
[1757522863914,0.2049,4376.5,4376.4,0.725]
[1757522864414,0.4102,4376.9,4376.8,0.4149]
[1757522864617,0.705,4376.9,4376.8,0.725]
[1757522865214,0.705,4376.9,4376.8,0.2044]
[1757522865410,0.705,4376.9,4376.8,0.725]
[1757522865615,3.9128,4377.4,4377.3,0.725]
[1757522866113,0.705,4377.4,4377.3,0.725]
[1757522874632,0.705,4377.8,4377.7,0.2044]
[1757522874832,0.705,4377.8,4377.7,0.5145]
[1757522875131,0.705,4377.8,4377.7,0.2044]
[1757522875534,0.705,4377.8,4377.7,0.725]
[1757522875831,0.5388,4377.5,4377.4,0.5145]
[1757522876128,0.8336,4377.5,4377.1,0.3101]
[1757522876322,0.8336,4377.5,4376.9,0.22846]
[1757522876524,0.8336,4377.5,4377.0,0.3101]
[1757522876725,0.705,4377.4,4377.3,0.5041]
[1757522880134,0.705,4377.4,4377.3,0.7095]
[1757522880740,0.705,4377.4,4377.3,0.2044]
[1757522881137,0.705,4377.4,4377.1,0.2997]
[1757522881436,0.7262,4377.4,4377.3,0.7072]
[1757522884634,0.7262,4377.4,4377.3,1.11831]
[1757522884836,0.316,4377.8,4377.4,0.2997]
[1757522885039,0.7424,4377.8,4377.7,0.7072]
[1757522891844,3.6342,4378.4,4378.3,0.2021]
[1757522892044,3.6342,4378.4,4378.3,0.5018]
[1757522892348,4.55710475,4378.4,4378.0,0.2997]
[1757522892546,0.316,4378.3,4377.7,0.2997]
[1757522892847,0.5296,4377.8,4377.7,0.7072]
[1757522893044,0.5296,4377.8,4377.7,1.11827]
[1757522893737,0.5296,4377.8,4377.7,0.7072]
[1757522893942,0.5296,4377.8,4377.7,1.11827]
[1757522894151,0.5296,4377.8,4377.7,0.7072]
[1757522894538,0.2136,4377.8,4377.7,0.7072]
[1757522894949,0.316,4378.0,4377.7,1.11827]
[1757522895254,0.5296,4378.0,4377.9,0.7072]
[1757522895548,0.5296,4378.0,4377.9,1.11825]
[1757522895844,0.5296,4378.0,4377.9,0.7072]
[1757522896249,0.7424,4378.0,4377.9,1.11825]
[1757522899851,0.7424,4378.0,4377.9,4.32605]
[1757522900348,0.7424,4378.0,4377.9,3.915]
[1757522900649,0.7424,4378.0,4377.9,1.11825]
[1757522901050,0.7424,4378.0,4377.9,0.7072]
[1757522901251,0.316,4377.9,4377.6,0.71078]
[1757522901452,0.7424,4377.7,4377.6,1.11828]
[1757522902651,0.7424,4377.7,4377.6,1.35128]
[1757522904548,0.7424,4377.7,4377.6,0.2021]
[1757522904849,0.7424,4377.7,4376.9,1.02786]
[1757522904850,0.8603,4377.0,4376.9,0.5018]
[1757522905048,0.316,4376.9,4376.7,3.2078]
[1757522905353,0.7424,4376.8,4376.7,3.2078]
[1757522905755,0.7424,4376.8,4376.7,3.4099]
[1757522906543,0.1179,4377.0,4376.2,3.2078]
[1757522906544,0.4264,4376.3,4376.2,3.2078]
[1757522906754,0.7424,4375.8,4375.7,3.4099]
[1757522907055,0.7424,4375.8,4375.7,0.2021]
[1757522907249,0.4191,4375.2,4375.1,3.4164]
[1757522907453,0.7397,4375.2,4375.1,3.2078]
[1757522907645,0.4191,4375.2,4374.5,3.4408]
[1757522907846,0.7397,4374.6,4374.5,3.8622]
[1757522908050,0.7397,4374.6,4374.5,3.9236]
[1757522908258,0.7397,4374.6,4374.5,3.2078]
[1757522908552,0.7397,4373.9,4373.8,0.7158]
[1757522909856,0.7397,4374.9,4374.8,0.2086]
[1757522910256,0.7397,4374.9,4374.3,0.2944]
[1757522910257,0.3206,4374.8,4374.3,0.2944]
[1757522910646,0.4191,4374.4,4374.3,0.7158]
[1757522910845,0.3206,4374.3,4374.2,3.2078]
[1757522911052,0.7397,4374.3,4374.2,3.2078]
[1757522911250,0.7397,4374.3,4374.2,3.7108]
[1757522911750,0.7397,4374.3,4374.2,3.9236]
[1757522912151,0.3206,4374.9,4374.2,3.6292]
[1757522912345,0.7397,4374.9,4374.8,0.2086]
[1757522912551,0.7397,4374.9,4374.8,0.503]
[1757522912752,0.7397,4374.9,4374.8,0.7158]
[1757522912954,0.233,4375.0,4374.8,0.7158]
[1757522913255,0.5283,4375.3,4375.2,0.7158]
[1757522913655,0.7397,4375.3,4375.2,0.2086]
[1757522913851,0.4191,4375.0,4374.9,0.503]
[1757522914054,0.7397,4375.0,4374.9,0.503]
[1757522914654,0.7397,4375.0,4374.9,0.7158]
[1757522916261,0.8676,4375.0,4374.9,0.7158]
[1757522916456,0.7397,4374.9,4374.8,3.2078]
[1757522916757,0.4191,4374.9,4374.3,3.5022]
[1757522916959,0.7397,4374.4,4374.3,3.9236]
[1757522917261,0.7397,4374.4,4374.3,3.2078]
[1757522917647,0.7397,4374.4,4374.0,0.5274]
[1757522917850,0.1279,4374.5,4374.0,0.5274]
[1757522918046,0.7397,4374.1,4374.0,0.9488]
[1757522918254,0.7397,4374.1,4374.0,0.2086]
[1757522918860,0.1279,4374.5,4373.8,3.2078]
[1757522918861,0.7397,4373.9,4373.8,3.2078]
[1757522919354,0.7397,4373.9,4373.8,3.7108]
[1757522919558,0.7397,4373.9,4373.8,3.9236]
[1757522922163,0.7397,4373.9,4373.8,3.4164]
[1757522922364,0.7397,4373.9,4373.5,0.2944]
[1757522923160,0.7397,4373.9,4373.8,0.7158]
[1757522924265,0.7397,4373.9,4373.8,0.4214]
[1757522924664,0.7397,4373.9,4373.5,0.2944]
[1757522924865,0.4191,4373.9,4373.8,0.2086]
[1757522925263,0.4191,4373.9,4373.8,0.503]
[1757522925468,0.7397,4373.9,4373.8,0.503]
[1757522925770,0.7397,4373.9,4373.8,0.7158]
[1757522927065,0.5283,4373.9,4373.8,0.7158]
[1757522927263,3.2078,4374.1,4373.8,0.7158]
[1757522927264,3.5284,4374.1,4373.9,0.2944]
[1757522927469,3.2078,4374.1,4374.0,0.8372]
[1757522927660,3.2078,4374.6,4374.2,0.2086]
[1757522927861,0.2077,4374.7,4374.6,0.4214]
[1757522928061,0.7397,4374.7,4374.6,0.7158]
[1757522928267,0.7397,4374.7,4374.6,0.4214]
[1757522929576,0.7397,4374.7,4374.6,0.7158]
[1757522930674,0.7397,4374.7,4374.6,0.4214]
[1757522931469,0.7397,4374.7,4374.6,0.2086]
[1757522933475,0.7397,4374.0,4373.9,0.7158]
[1757522933672,0.547,4374.0,4373.8,3.2078]
[1757522933976,0.7397,4373.9,4373.8,3.9236]
[1757522936075,0.7397,4373.9,4373.8,0.2086]
[1757522936373,0.4191,4373.4,4373.3,3.2078]
[1757522936570,0.4191,4373.4,4372.0,0.1214]
[1757522936571,0.6521,4373.4,4372.8,3.5022]
[1757522936874,0.7247,4372.9,4372.8,3.9286]
[1757522937068,0.233,4373.4,4372.8,3.6342]
[1757522937269,0.7247,4373.3,4373.2,0.4264]
[1757522937467,0.7247,4373.3,4373.2,0.7334]
[1757522938175,1.32965999,4373.3,4373.2,0.2138]
[1757522938373,1.32965999,4373.3,4373.2,0.7334]
[1757522938578,0.7247,4373.3,4373.2,0.7334]
[1757522940168,0.7247,4373.3,4372.8,3.5148]
[1757522940369,0.8513,4373.0,4372.9,0.5208]
[1757522941672,0.8513,4373.0,4372.9,0.7334]
[1757522941977,0.7247,4373.0,4372.9,0.7334]
[1757522942780,0.5088,4373.4,4373.3,0.4264]
[1757522943078,0.7418,4373.4,4373.3,0.7334]
[1757522943578,0.4311,4373.4,4373.3,0.7334]
[1757522944167,0.9577,4373.4,4373.3,0.7334]
[1757522944367,0.3107,4373.3,4372.8,3.5148]
[1757522944582,0.7247,4372.9,4372.8,0.7334]
[1757522945679,0.1266,4373.5,4372.8,0.7334]
[1757522945875,0.91533759,4373.4,4372.9,0.307]
[1757522946081,0.91533759,4373.4,4372.6,3.61935]
[1757522946082,0.7247,4373.4,4373.3,0.7334]
[1757522946276,1.32934689,4373.4,4373.3,0.7334]
[1757522946476,0.5088,4373.4,4373.3,0.7334]
[1757522946681,0.1981,4373.4,4373.3,0.7334]
[1757522952480,0.7247,4373.4,4373.3,0.7334]
[1757522952776,0.233,4373.6,4373.1,3.2078]
[1757522952777,0.7247,4373.2,4373.1,3.7286]
[1757522952983,0.7247,4373.2,4373.1,3.4216]
[1757522953183,0.7247,4373.2,4373.1,0.2138]
[1757522954179,0.7247,4373.2,4373.1,0.5208]
[1757522954485,0.7247,4373.2,4373.1,0.7334]
[1757522955485,0.5088,4373.2,4373.1,0.7334]
[1757522956585,0.7247,4373.2,4373.1,0.7334]
[1757522957286,0.3107,4373.5,4373.2,0.307]
[1757522957485,0.233,4373.6,4373.2,0.307]
[1757522957486,0.647,4373.6,4373.5,0.4264]
[1757522957683,0.9577,4373.6,4373.5,0.7334]
[1757522959888,0.233,4373.6,4373.5,0.8613]
[1757522960584,0.7418,4373.6,4373.5,0.8613]
[1757522961383,0.9577,4373.6,4373.5,0.7334]
[1757522962084,0.4311,4373.6,4373.5,0.8613]
[1757522962288,0.233,4373.6,4373.5,0.8613]
[1757522962480,0.233,4373.6,4373.5,1.27276]
[1757522962781,0.4311,4374.1,4374.0,0.4264]
[1757522962986,0.4311,4374.1,4374.0,0.8613]
[1757522963183,0.233,4374.1,4374.0,0.8613]
[1757522963384,0.4311,4374.1,4374.0,0.8613]
[1757522963589,0.4311,4374.1,4374.0,0.7334]
[1757522963590,0.9577,4374.1,4374.0,0.7334]
[1757522964185,0.1266,4374.0,4373.5,0.1279]
[1757522964486,0.1981,4373.7,4373.6,0.2138]
[1757522964686,0.1981,4373.7,4373.6,0.4264]
[1757522964989,0.1981,4373.7,4373.6,0.7334]
[1757522966784,0.5013,4373.7,4373.6,0.7334]
[1757522968183,0.233,4374.1,4373.7,0.3046]
[1757522968390,0.7282,4374.0,4373.9,0.7059]
[1757522969986,0.85,4374.0,4373.9,0.7059]
[1757522970191,0.5468,4374.0,4373.2,0.41149]
[1757522970489,0.5177,4373.4,4373.3,0.7059]
[1757522970693,0.7282,4373.4,4373.3,0.7059]
[1757522972393,0.7282,4373.4,4373.0,0.3046]
[1757522972694,0.3032,4373.3,4372.6,0.3046]
[1757522972891,0.3032,4373.4,4372.7,0.3046]
[1757522973093,0.5177,4372.8,4372.7,0.93457]
[1757522973392,0.2145,4372.9,4372.8,0.3046]
[1757522973586,0.5177,4372.9,4372.8,0.7059]
[1757522973793,0.3032,4373.4,4372.9,0.3046]
[1757522973988,0.3363,4373.5,4373.4,0.2053]
[1757522974189,0.5468,4373.5,4373.4,0.2053]
[1757522974601,0.85,4373.5,4373.4,0.2053]
[1757522974791,0.85,4373.5,4372.6,0.3046]
[1757522975292,0.85,4373.5,4372.5,0.76596]
[1757522975293,0.7282,4373.5,4373.4,0.4013]
[1757522975494,0.2145,4373.5,4373.4,0.4013]
[1757522975792,0.7282,4373.5,4373.4,0.4013]
[1757522976297,0.5177,4373.5,4373.4,0.7059]
[1757522976994,0.7282,4373.5,4373.4,0.7059]
[1757522977592,0.3032,4373.8,4373.4,0.2053]
[1757522977793,0.7282,4373.3,4373.2,0.2053]
[1757522977992,0.7282,4373.3,4372.7,3.2078]
[1757522978192,0.3032,4373.2,4372.8,0.3046]
[1757522978394,0.7282,4372.9,4372.8,0.7059]
[1757522979701,0.7282,4372.9,4372.7,3.2078]
[1757522979903,0.7282,4372.8,4372.7,3.7177]
[1757522980601,0.7282,4372.8,4372.7,0.5099]
[1757522980997,0.5468,4372.5,4372.4,0.2053]
[1757522981200,0.85,4372.5,4372.2,3.2078]
[1757522981400,0.3032,4372.4,4372.2,3.2078]
[1757522981605,0.425,4372.3,4372.2,3.4131]
[1757522981906,0.7282,4372.3,4372.2,3.7177]
[1757522982402,0.7282,4372.3,4372.2,3.9137]
[1757522982702,0.7282,4372.3,4372.2,0.7059]
[1757522986507,0.2145,4372.3,4372.2,0.7059]
[1757522986695,0.233,4372.7,4372.2,0.4013]
[1757522986900,0.9612,4372.7,4372.6,0.7059]
[1757522987201,0.233,4372.9,4372.6,0.7059]
[1757522987406,3.511,4373.0,4372.7,0.3046]
[1757522987706,3.7255,4373.0,4372.9,0.7059]
[1757522988008,3.936,4373.0,4372.9,0.7059]
[1757522988905,0.7282,4373.0,4372.9,0.7059]
[1757522989599,0.5177,4373.0,4372.9,0.7059]
[1757522990308,3.511,4373.5,4373.3,0.3046]
[1757522990508,3.7255,4373.5,4373.4,0.4013]
[1757522990702,3.7255,4373.5,4373.4,0.7059]
[1757522991007,3.936,4373.5,4373.4,0.7059]
[1757522991209,0.7282,4373.5,4373.4,0.7059]
[1757522991708,0.85,4373.5,4373.4,0.7059]
[1757522992608,0.7282,4373.5,4373.4,0.7059]
[1757522992904,0.5177,4373.5,4373.4,0.7059]
[1757522993105,0.233,4373.6,4373.4,0.7059]
[1757522993405,0.5177,4373.8,4373.7,0.7059]
[1757522995300,0.233,4373.9,4373.7,0.7059]
[1757522995506,0.233,4373.9,4373.8,0.7059]
[1757522996910,0.9713,4373.9,4373.8,0.7059]
[1757522999410,0.6616,4373.9,4373.7,3.2078]
[1757522999614,0.7191,4373.8,4373.7,3.2078]
[1757522999907,0.7191,4373.8,4373.7,3.4037]
[1757523000112,0.7191,4373.8,4373.7,3.7263]
[1757523000408,0.7191,4373.8,4373.7,3.2078]
[1757523000712,0.4094,4373.3,4373.2,3.4037]
[1757523001010,0.7191,4373.3,4373.2,3.9354]
[1757523001212,0.7191,4373.3,4373.2,0.1959]
[1757523001605,0.7191,4373.3,4373.2,0.7276]
[1757523002008,0.1257,4373.0,4372.9,0.3226]
[1757523002213,0.8448,4373.0,4372.9,0.5185]
[1757523002608,0.8448,4373.0,4372.9,0.7276]
[1757523003410,0.1953,4373.0,4372.9,0.7276]
[1757523004115,0.3097,4373.3,4373.0,0.3226]
[1757523004310,0.7191,4373.1,4373.0,0.5185]
[1757523004813,0.7191,4373.1,4373.0,0.7276]
[1757523005708,0.5427,4373.4,4373.3,0.405]
[1757523005907,0.738,4373.4,4373.3,0.7276]
[1757523006213,0.9521,4373.4,4373.3,0.7276]
[1757523009316,0.3097,4373.8,4373.4,0.3226]
[1757523009517,3.9269,4373.9,4373.8,0.7276]
[1757523010816,3.9269,4373.9,4373.8,0.1959]
[1757523011014,7.6172,4373.9,4373.0,0.3226]
[1757523011312,0.7191,4372.9,4372.8,0.7276]
[1757523011814,0.505,4373.4,4373.3,0.7276]
[1757523012517,0.7191,4373.4,4373.3,0.7276]
[1757523014819,0.7191,4373.4,4373.3,1.13908]
[1757523015014,0.232,4373.5,4373.4,0.81647]
[1757523015215,0.232,4373.5,4373.4,1.13907]
[1757523015714,0.737,4373.5,4373.4,0.7276]
[1757523015915,0.737,4373.5,4373.4,1.13907]
[1757523017110,0.505,4373.5,4373.4,1.13907]
[1757523018519,0.1257,4374.0,4373.6,0.41145]
[1757523018720,0.1953,4373.7,4373.6,0.41145]
[1757523018923,0.1953,4373.7,4373.6,0.81645]
[1757523019224,0.1953,4373.7,4373.6,1.13905]
[1757523019522,0.1953,4374.1,4374.0,0.8544]
[1757523019718,0.3097,4374.6,4374.0,0.1268]
[1757523020025,0.505,4374.6,4374.5,0.7276]
[1757523020221,0.7191,4374.6,4374.5,0.1959]
[1757523020431,0.4094,4374.2,4373.8,3.2078]
[1757523020723,0.7191,4374.1,4374.0,0.1959]
[1757523020923,0.7191,4374.1,4374.0,1.13902]
[1757523021219,0.7191,4374.1,4374.0,0.7276]
[1757523022820,0.7191,4374.1,4374.0,0.405]
[1757523023020,0.7191,4374.1,4374.0,0.1959]
[1757523024226,0.7191,4374.1,4374.0,0.7276]
[1757523024825,0.1953,4374.2,4374.1,0.7276]
[1757523025027,0.505,4374.2,4374.1,0.7276]
[1757523025325,0.7191,4374.2,4374.1,0.7276]
[1757523029030,0.505,4374.2,4374.1,0.7276]
[1757523029224,0.7126,4374.2,4374.1,0.7276]
[1757523030922,0.7211,4373.9,4373.8,3.2078]
[1757523031128,0.4151,4373.9,4373.8,0.2164]
[1757523031323,0.7211,4373.9,4373.4,0.293]
[1757523031523,0.232,4374.3,4373.7,0.4231]
[1757523031826,0.2075,4373.9,4373.8,0.7161]
[1757523032018,0.7211,4373.9,4373.8,0.7161]
[1757523032223,0.7211,4373.9,4373.8,0.2164]
[1757523032623,0.7211,4373.9,4373.8,0.5094]
[1757523032828,0.232,4374.3,4373.5,3.61926]
[1757523032829,0.7455,4374.3,4374.2,0.4231]
[1757523033031,0.7455,4374.3,4374.2,0.7161]
[1757523033330,0.9531,4374.3,4374.2,0.7161]
[1757523034031,0.9531,4374.3,4374.2,0.4231]
[1757523034233,0.9531,4374.3,4373.9,0.293]
[1757523034632,0.5409,4374.0,4373.9,0.5094]
[1757523034824,0.8469,4374.0,4373.9,0.5094]
[1757523035632,0.8469,4374.0,4373.9,0.2164]
[1757523036229,0.8469,4374.0,4373.9,0.5094]
[1757523036731,0.7211,4374.0,4373.9,0.7161]
[1757523037939,0.232,4374.3,4374.2,0.4231]
[1757523038131,0.232,4374.3,4374.2,0.7161]
[1757523038427,3.2078,4374.9,4374.0,3.73652]
[1757523038428,0.306,4374.8,4374.3,0.293]
[1757523038632,0.7211,4374.8,4374.7,0.5094]
[1757523039028,0.7211,4374.8,4374.7,0.2164]
[1757523039224,0.7211,4374.8,4374.4,0.293]
[1757523039430,0.7211,4374.8,4374.1,0.293]
[1757523039431,0.4151,4374.8,4374.1,0.293]
[1757523039635,0.306,4374.7,4374.1,0.293]
[1757523039926,0.7211,4374.7,4374.6,0.2164]
[1757523041636,0.7211,4374.7,4374.6,0.5094]
[1757523042031,0.1258,4374.5,4374.2,0.293]
[1757523042340,0.7211,4374.3,4374.2,0.7161]
[1757523042532,0.5135,4374.3,4374.2,0.7161]
[1757523042727,0.7211,4374.8,4374.7,0.5094]
[1757523043328,0.7211,4374.8,4374.7,0.7161]
[1757523044037,0.7211,4374.2,4374.1,0.5094]
[1757523044234,0.7211,4374.2,4374.1,0.7161]
[1757523044735,0.306,4374.5,4374.4,0.4231]
[1757523045037,3.2078,4374.9,4374.5,0.293]
[1757523045235,0.5135,4374.6,4374.5,0.4997]
[1757523045534,0.7211,4374.6,4374.5,0.7161]
[1757523049538,0.5135,4374.6,4374.5,0.8334]
[1757523050835,0.5135,4374.6,4374.5,0.7161]
[1757523051831,0.7211,4374.6,4374.5,0.7161]
[1757523058736,0.3199,4374.9,4374.5,0.5498]
[1757523058944,0.3199,4374.8,4374.7,0.4259]
[1757523059148,0.3199,4374.8,4374.7,0.7231]
[1757523059534,0.5334,4374.8,4374.7,0.7231]
[1757523059841,0.2135,4374.8,4374.7,0.7231]
[1757523060541,0.5334,4374.8,4374.7,0.7231]
[1757523061140,0.7453,4374.8,4374.7,0.7231]
[1757523062636,0.3199,4374.7,4374.5,3.2078]
[1757523062836,0.1228,4375.0,4374.5,3.2078]
[1757523062837,0.4254,4374.6,4374.5,3.2078]
[1757523063045,0.7453,4374.6,4374.5,3.2078]
[1757523066047,0.7453,4374.6,4374.5,3.4195]
[1757523066945,0.5482,4374.0,4373.9,0.5089]
[1757523067152,0.8681,4374.0,4373.9,0.5089]
[1757523067546,0.7453,4374.0,4373.9,0.7231]
[1757523068552,0.5334,4374.0,4373.9,0.7231]
[1757523069849,0.5482,4374.0,4373.8,3.2078]
[1757523070147,0.5482,4374.0,4373.0,0.1268]
[1757523070148,0.3199,4373.8,4373.3,0.2972]
[1757523070349,0.7453,4373.4,4373.3,0.7231]
[1757523070750,0.7453,4373.4,4373.3,0.4259]
[1757523071436,0.7453,4373.4,4373.3,0.2117]
[1757523072749,0.7453,4373.4,4373.1,3.2078]
[1757523072750,0.3199,4373.3,4373.1,3.2078]
[1757523072949,0.7453,4373.2,4373.1,0.5089]
[1757523073149,0.7453,4373.2,4373.1,0.7231]
[1757523076042,0.5334,4373.2,4373.1,0.7231]
[1757523076754,0.2135,4373.2,4373.1,1.1346]
[1757523076944,0.232,4373.7,4373.1,0.8374]
[1757523077145,0.7453,4373.6,4373.5,0.5089]
[1757523077649,0.7453,4373.6,4373.5,0.7231]
[1757523080950,0.1228,4374.0,4373.5,0.7231]
[1757523081150,0.5334,4373.6,4373.5,0.8498]
[1757523081355,0.7453,4373.6,4373.5,0.7231]
[1757523082554,0.7453,4373.6,4373.5,0.2117]
[1757523084552,0.4254,4373.3,4373.2,0.5089]
[1757523084856,0.7453,4373.3,4373.2,0.7231]
[1757523087550,0.8326,4374.0,4373.9,0.2162]
[1757523087858,0.75435001,4374.0,4373.2,0.322]
[1757523088152,0.3069,4373.9,4373.2,0.322]
[1757523088551,0.7098,4373.9,4373.8,0.2162]
[1757523088756,0.7098,4373.9,4373.8,0.4131]
[1757523088957,0.7098,4373.9,4373.8,0.7351]
[1757523090454,0.5027,4374.5,4374.4,0.7351]
[1757523090653,0.1958,4374.5,4374.4,0.7351]
[1757523090855,3.2078,4374.7,4374.6,0.7351]
[1757523091051,0.232,4375.1,4375.0,0.7351]
[1757523091052,0.7347,4375.1,4375.0,0.7351]
[1757523091248,0.5027,4375.1,4375.0,0.8523]
[1757523091448,0.232,4375.7,4375.6,0.4131]
[1757523091658,3.2078,4376.0,4375.7,0.322]
[1757523091856,3.2078,4376.0,4375.9,0.7351]
[1757523092153,3.7105,4376.0,4375.9,0.7351]
[1757523092350,1.61462764,4378.2,4375.9,0.7351]
[1757523092351,3.2078,4376.7,4376.5,0.4392]
[1757523092547,3.4036,4377.4,4377.3,0.4131]
[1757523092752,3.2078,4377.4,4377.3,0.7351]
[1757523093151,0.1958,4377.4,4377.3,0.7351]
[1757523093351,0.5027,4377.4,4377.3,0.7351]
[1757523093551,0.7098,4377.4,4377.3,0.2162]
[1757523095058,0.7098,4377.4,4377.3,0.5382]
[1757523095849,0.7098,4377.4,4377.3,0.2162]
[1757523096055,0.7098,4377.4,4377.0,0.322]
[1757523097164,0.7098,4377.4,4376.8,0.322]
[1757523097460,0.7098,4377.4,4377.3,0.2162]
[1757523098052,0.7098,4377.4,4376.8,0.322]
[1757523098252,0.7098,4377.4,4377.3,0.2162]
[1757523098456,0.7098,4377.4,4377.0,0.322]
[1757523098652,0.7098,4377.4,4377.3,0.2162]
[1757523099055,3.2078,4377.8,4377.3,0.4131]
[1757523099256,0.5027,4377.5,4377.4,0.7351]
[1757523099852,3.5147,4377.8,4377.7,0.4131]
[1757523100056,3.2078,4377.8,4377.7,0.7351]
[1757523100264,3.4036,4377.8,4377.7,0.7351]
[1757523100562,3.7105,4377.8,4377.7,0.7351]
[1757523101358,3.9176,4377.8,4377.7,0.7351]
[1757523102663,0.7098,4377.8,4377.7,0.7351]
[1757523106763,0.7098,4377.7,4377.6,0.7351]
[1757523107164,0.7098,4377.7,4377.6,0.2162]
[1757523107566,0.7098,4377.7,4377.6,0.5382]
[1757523107869,0.7098,4377.7,4377.6,0.7351]
[1757523108169,0.4029,4378.2,4378.1,0.2162]
[1757523108472,0.7098,4378.2,4378.1,0.2162]
[1757523109575,0.7098,4378.2,4378.1,0.7351]
[1757523109760,0.5027,4378.6,4378.5,0.8523]
[1757523109965,0.1958,4378.6,4378.5,1.26329]
[1757523110162,0.7098,4378.6,4378.5,0.7351]
[1757523110368,0.1173,4378.5,4378.0,0.322]
[1757523110575,0.7098,4378.1,4378.0,0.7351]
[1757523112674,0.1958,4378.1,4378.0,0.5303]
[1757523112975,0.5027,4378.1,4378.0,0.5303]
[1757523113475,0.5027,4378.1,4378.0,0.8523]
[1757523114369,0.4242,4378.5,4378.1,0.41103]
[1757523114570,0.8271,4378.5,4378.4,0.7351]
[1757523115076,0.8271,4378.5,4378.4,0.2162]
[1757523115378,0.5202,4378.5,4378.0,0.322]
[1757523115571,0.7098,4378.4,4378.3,0.2162]
[1757523116672,0.3069,4378.4,4378.3,0.7351]
[1757523116875,0.508,4378.6,4378.5,0.4115]
[1757523117075,0.508,4378.6,4378.5,0.7167]
[1757523117273,0.508,4378.6,4378.5,0.8382]
[1757523117575,0.2139,4378.6,4378.5,0.8382]
[1757523117775,0.402,4378.9,4378.5,0.94399]
[1757523117972,0.2139,4378.8,4378.7,0.7167]
[1757523118178,0.402,4378.9,4378.7,0.4115]
[1757523118374,0.6159,4378.9,4378.8,0.7167]
[1757523118878,0.91,4378.9,4378.8,0.7167]
[1757523119080,0.6159,4378.9,4378.8,0.7167]
[1757523119580,0.91,4378.9,4378.8,0.7167]
[1757523120275,0.678,4378.9,4378.8,0.7167]
[1757523120875,0.8752,4378.9,4378.8,0.7167]
[1757523121076,0.8752,4378.9,4378.5,0.3052]
[1757523121483,0.8243,4378.5,4378.4,3.2078]
[1757523121781,0.8243,4378.5,4378.4,3.9245]
[1757523121782,0.7052,4378.5,4378.4,3.9245]
[1757523121981,0.508,4378.5,4378.4,3.9245]
[1757523122775,1.12226031,4378.5,4378.4,3.9245]
[1757523122981,0.82816031,4378.5,4378.4,3.9245]
[1757523123177,0.61426031,4378.5,4378.4,3.9245]
[1757523123680,0.61426031,4378.5,4378.4,4.1565]
[1757523125673,0.61426031,4378.5,4378.4,4.56751]
[1757523127286,1.31946031,4378.5,4378.4,1.35971]
[1757523128379,1.12226031,4378.5,4378.4,1.35971]
[1757523128586,0.61426031,4378.5,4378.4,1.35971]
[1757523130882,1.31946031,4378.5,4378.4,1.35971]
[1757523131181,1.43856031,4378.5,4378.4,0.9487]
[1757523131382,1.31946031,4378.5,4378.4,1.35971]
[1757523132080,1.43856031,4378.5,4378.4,0.9487]
[1757523132481,1.43856031,4378.5,4378.4,1.35971]
[1757523132678,1.43856031,4378.5,4378.4,0.4115]
[1757523132879,0.7052,4378.4,4378.3,3.85082]
[1757523133078,1.31946031,4378.4,4378.3,3.85082]
[1757523133284,1.31946031,4378.4,4378.3,4.05802]
[1757523133685,1.31946031,4378.4,4378.3,3.4398]
[1757523133889,1.31946031,4378.4,4378.3,3.2078]